Cogmind - Beta 9.4 @@@ ROGUE MODE // 2020.02.09 @ 01:21:48 Player: gurak Result: Self-destructed Performance ------------- Evolutions (1) 500 Regions Visited (3) 600 Robots Destroyed (15) 75 Value Destroyed (474) 474 Prototype IDs (0) 0 Alien Tech Used (0) 0 Bonus (0) 0 TOTAL SCORE: 1649 Bonus ------- None Cogmind --------- Core Integrity 82/400 Matter 300/300 Energy 100/100 System Corruption 0% Temperature Cool (9) Movement Core (50) Location -9/Materials Parts ------- > --- POWER (1) -------- (None) > --- PROPULSION (3) --- (None) > --- UTILITY (3) ------ (None) > --- WEAPON (2) ------- (None) > --- INVENTORY (4) ---- Aluminum Leg Peak State ------------ > --- POWER ------------ Light Nuclear Core > --- PROPULSION ------- Aluminum Leg Aluminum Leg Aluminum Leg > --- UTILITY ---------- (None) > --- WEAPON ----------- Light Cannon > --- INVENTORY -------- Aluminum Leg [Rating: 7] Favorites ----------- Power Light Ion Engine Engine Light Ion Engine Power Core Light Nuclear Core Propulsion Aluminum Leg Leg Aluminum Leg Utility None Weapon Light Cannon Energy Gun Small Laser Ballistic Cannon Light Cannon Build | -11 -10 -10 -9 ------- Run | Scr Mat Min Mat Slots Evolved 2 | . . . 2 Power . | . . . . Propulsion 1 | . . . 1 Utility 1 | . . . 1 Weapon . | . . . . Parts Attached 16 | 6 2 7 1 Power 3 | 1 . 2 . Engine 2 | 1 . 1 . Core 1 | . . 1 . Reactor . | . . . . Propulsion 7 | 2 . 4 1 Treads . | . . . . Leg 7 | 2 . 4 1 Wheel . | . . . . Hover . | . . . . Flight . | . . . . Utility . | . . . . Device . | . . . . Storage . | . . . . Processor . | . . . . Hackware . | . . . . Protection . | . . . . Artifact . | . . . . Weapon 6 | 3 2 1 . Energy Gun 5 | 3 1 1 . Energy Cannon . | . . . . Ballistic Gun . | . . . . Ballistic Cannon 1 | . 1 . . Launcher . | . . . . Special Weapon . | . . . . Impact Weapon . | . . . . Slashing Weapon . | . . . . Piercing Weapon . | . . . . Special Melee Weapon . | . . . . Unidentified Prototypes . | . . . . Parts Lost 12 | 1 2 4 5 Power 2 | . . 1 1 Propulsion 4 | . . 1 3 Utility . | . . . . Weapon 6 | 1 2 2 1 Highest Loss Streak 5 | 1 2 3 5 Average Slot Usage (%) 56 | . 68 54 41 Engine 7 | . 14 4 . Core 3 | . . 3 10 Leg 27 | . 28 27 25 Energy Gun 6 | . 16 3 . Ballistic Cannon 11 | . 9 14 6 Naked Turns 7 | . . . 7 Heaviest Build 9 | 7 9 9 8 Greatest Support 30 | 20 20 20 30 Greatest Overweight (x) . | . . . . Average Overweight (x) . | . . . . Largest Inventory Capacity 4 | 4 4 4 4 Average Capacity 4 | 4 4 4 4 Most Carried 4 | 4 4 4 1 Average Carried 2 | 1 1 2 1 Final Capacity 4 | 4 4 4 4 Final Carried 4 | 1 4 2 1 Class Distribution -------------------- 80% | Mutant 19% | Scavenger-Mutant Dominant Class ---------------- Mutant | -10/Materials Mutant | -10/Mines Scavenger-Mutant | -9/Materials Resources | -11 -10 -10 -9 ----------- Run | Scr Mat Min Mat Matter Collected 506 | 260 40 206 . Remotely . | . . . . Salvage Created 447 | 68 109 250 20 Parts 21 | 4 5 11 1 Haulers Intercepted . | . . . . Recyclers Shooed . | . . . . Parts Field Recycled . | . . . . Retrieved Matter . | . . . . Parts Self-Destructed . | . . . . Prevented . | . . . . Kills | -11 -10 -10 -9 ------- Run | Scr Mat Min Mat Combat Hostiles Destroyed 14 | 1 3 9 1 Melee 1 | . . . 1 Guns 4 | 1 2 1 . Cannons 9 | . 1 8 . Classes Destroyed 4 | 2 . 1 1 Tunneler 1 | 1 . . . Swarmer 1 | . . . 1 Grunt 12 | 1 3 8 . Assembled 1 | . . 1 . Best Kill Streak 4 | 2 2 4 1 Combat Bots Only 4 | 1 2 4 1 Max Kills in Single Turn 1 | 1 1 1 1 Gunslinging . | . . . . Exploded . | . . . . Melee 1 | . . . 1 Uniques/NPCs Destroyed . | . . . . Combat | -11 -10 -10 -9 -------- Run | Scr Mat Min Mat Damage Taken 1413 | 150 209 444 610 Core 477 | 21 61 77 318 Absorbed by Shields . | . . . . Core Remaining (%) 63 | 91 . 36 . Volleys Fired 69 | 9 19 39 2 Largest 2 | 2 2 2 1 Hottest 100 | 90 100 100 35 Shots Fired 99 | 18 30 49 2 Gun 53 | 18 25 10 . Cannon 46 | . 5 39 2 Launcher . | . . . . Special . | . . . . Kinetic 46 | . 5 39 2 Thermal 45 | 10 25 10 . Explosive . | . . . . Electromagnetic 8 | 8 . . . Robot Hit Streak 14 | 5 5 14 . Robot Miss Streak 4 | 4 3 2 2 Penetration Max . | . . . . Secondary Targets . | . . . . Shots Hit Robots 61 | 10 16 35 . Core Hits 25 | 3 6 14 2 Critical Hits . | . . . . Critical Kills . | . . . . Critical Parts Destroyed . | . . . . Melee Attacks . | . . . . Impact . | . . . . Slashing . | . . . . Piercing . | . . . . Sneak Attacks . | . . . . Combat Hostiles . | . . . . Follow-up Attacks . | . . . . Damage Inflicted 967 | 140 209 595 23 Guns 414 | 140 175 99 . Cannons 530 | . 34 496 . Explosions . | . . . . Melee . | . . . . Ramming 23 | . . . 23 Kinetic 530 | . 34 496 . Thermal 335 | 61 175 99 . Explosive . | . . . . Electromagnetic 79 | 79 . . . Impact . | . . . . Slashing . | . . . . Piercing . | . . . . Highest Corruption . | . . . . Average Corruption . | . . . . Corruption Purged . | . . . . Overload Shots . | . . . . Overflow Damage 6 | . . 6 . Projectiles 6 | . . 6 . Explosions . | . . . . Melee . | . . . . Knockbacks 4 | . . 4 . Impact . | . . . . Kinetic 3 | . . 3 . Secondary 1 | . . 1 . Self-Inflicted Damage 10 | . . . 10 Shots . | . . . . Rammed 7 | . . . 7 Targets Rammed 7 | . . . 7 Kicked . | . . . . Crushed . | . . . . Highest Temperature 323 | 323 243 215 . Average Temperature 118 | 194 118 79 . Received Heat Transfer 539 | 84 120 305 30 Effects 2 | 2 . . . Shutdowns 1 | 1 . . . Energy Bleed 1 | 1 . . . Siege Activations . | . . . . Robots Corrupted . | . . . . Combat Hostiles . | . . . . Parts Fried . | . . . . Impact Corruptions . | . . . . Robots Melted . | . . . . Combat Hostiles . | . . . . Parts Melted 1 | . 1 . . Heat Transferred 890 | 173 482 235 . Parts Sabotaged . | . . . . Parts Stolen . | . . . . Parts Stripped . | . . . . Power Chain Reactions . | . . . . Missiles Intercepted . | . . . . Alert | -11 -10 -10 -9 ------- Run | Scr Mat Min Mat Peak Influence 206 | 20 93 206 30 Average Influence 66 | 2 54 100 5 Maximum Alert Level 1 | . . 1 . Low Security (%) 93 | 100 100 87 100 Level 1 6 | . . 12 . Level 2 . | . . . . Level 3 . | . . . . Level 4 . | . . . . Level 5 . | . . . . High Security . | . . . . Max Security . | . . . . Squads Dispatched . | . . . . Investigation . | . . . . Extermination . | . . . . Reinforcement . | . . . . Assault . | . . . . Garrison . | . . . . Intercept . | . . . . Construction Impeded . | . . . . Haulers Reinforced . | . . . . Stealth | -11 -10 -10 -9 --------- Run | Scr Mat Min Mat Distress Signals . | . . . . Communications Jammed . | . . . . Distress Signals . | . . . . Times Spotted 29 | 1 6 12 10 Peak Tracking Total 7 | 1 2 4 7 Tactical Retreats 4 | . 2 1 1 Traps | -11 -10 -10 -9 ------- Run | Scr Mat Min Mat Traps Triggered . | . . . . Indirectly . | . . . . Trap Hack Attempts . | . . . . Triggered . | . . . . Disarmed . | . . . . Reprogrammed . | . . . . Reused . | . . . . Traps Extracted . | . . . . Installed . | . . . . Triggered 1 | . . 1 . Machines | -11 -10 -10 -9 ---------- Run | Scr Mat Min Mat Machines Disabled 1 | . 1 . . Max in Single Turn 1 | . 1 . . Machines Sabotaged . | . . . . Garrisons Compromised . | . . . . Overloaded Fab Kills . | . . . . Fab Network Shutdowns . | . . . . Hacking | -11 -10 -10 -9 --------- Run | Scr Mat Min Mat Machines Accessed 2 | . 1 1 . Terminals 1 | . . 1 . Fabricators . | . . . . Repair Stations . | . . . . Recycling Units 1 | . 1 . . Scanalyzers . | . . . . Garrison Access . | . . . . Total Hacks 5 | . 3 2 . Successful 5 | . 3 2 . Failed . | . . . . Catastrophic . | . . . . Database Lockouts . | . . . . Manual 1 | . . 1 . Terminals 2 | . . 2 . Fabricators . | . . . . Repair Stations . | . . . . Recycling Units 3 | . 3 . . Scanalyzers . | . . . . Garrison Access . | . . . . Terminal Hacks 2 | . . 2 . Record 2 | . . 2 . Fabricator Hacks . | . . . . Repair Station Hacks . | . . . . Recycling Unit Hacks 3 | . 3 . . Process 1 | . 1 . . Report Inventory 1 | . 1 . . Retrieve Matter 1 | . 1 . . Scanalyzer . | . . . . Garrison Access Hacks . | . . . . Unauthorized Hacks . | . . . . Terminals . | . . . . Fabricators . | . . . . Repair Stations . | . . . . Recycling Units . | . . . . Scanalyzers . | . . . . Garrison Access . | . . . . Data Cores Recovered . | . . . . Used . | . . . . Hacking Detections 2 | . 1 1 . Full Trace Events . | . . . . Feedback Events . | . . . . Feedback Blocked . | . . . . Robot Schematics Acquired . | . . . . Robots Built . | . . . . Matter . | . . . . Time . | . . . . Total Robot Build Rating . | . . . . Part Schematics Acquired . | . . . . Parts Built . | . . . . Matter . | . . . . Time . | . . . . Total Part Build Rating . | . . . . Parts Repaired . | . . . . Time . | . . . . Parts Recycled . | . . . . Recycled Matter 3 | . 3 . . Retrieved Matter . | . . . . Retrieved Components . | . . . . Parts Scanalyzed . | . . . . Part Schematics Acquired . | . . . . Parts Damaged . | . . . . Bothacking | -11 -10 -10 -9 ------------ Run | Scr Mat Min Mat Used RIF Installer . | . . . . Robots Hacked . | . . . . Non-combat . | . . . . Combat . | . . . . Robot Hacks Applied . | . . . . Relay Couplers Released . | . . . . Robots Rewired . | . . . . Allies Hacked . | . . . . Hacks Repelled . | . . . . Allies | -11 -10 -10 -9 -------- Run | Scr Mat Min Mat Total Allies . | . . . . Largest Group . | . . . . Highest-Rated Group . | . . . . Highest-Rated Ally . | . . . . Total Orders . | . . . . Ally Attacks . | . . . . Total Damage . | . . . . Kills . | . . . . Allies Corrupted . | . . . . Allies Melted . | . . . . Intel | -11 -10 -10 -9 ------- Run | Scr Mat Min Mat Robot Analysis Total . | . . . . Derelict Logs Recovered 1 | . . 1 . Drone Launches . | . . . . Drone Recoveries . | . . . . Exploration | -11 -10 -10 -9 ------------- Run | Scr Mat Min Mat Turns Passed 946 | 103 249 481 113 Spaces Moved 633 | 82 149 316 86 Core 53 | 49 . . 4 Treads . | . . . . Legs 580 | 33 149 316 82 Wheels . | . . . . Hover . | . . . . Flight . | . . . . Fastest Speed 50 | 50 120 120 50 Average Speed 114 | 78 120 120 116 Slowest Speed 120 | 120 120 120 120 Overloaded Moves . | . . . . Propulsion Burnouts . | . . . . Robots Hopped . | . . . . Cave-ins Triggered . | . . . . Exploration Rate (%) 29 | 8 33 65 12 Regions Visited 3 Branch Regions 1 Pre-discovered Areas . | . . . . Known Exits Taken . | . . . . Unknown Exits Taken 3 | 1 1 1 . Scrap Searched . | . . . . Spaces Dug . | . . . . Terrain Destroyed . | . . . . Melee . | . . . . Projectile . | . . . . AOE . | . . . . Actions | -11 -10 -10 -9 --------- Run | Scr Mat Min Mat Total 757 | 102 189 370 96 Wait 15 | . 15 . . Move 630 | 81 148 315 86 Hop . | . . . . Pick Up 15 | 6 5 4 . Fast Attach 2 | 1 . 1 . Attach 11 | 5 2 3 1 Detach . | . . . . Swap 3 | . . 3 . Drop 5 | . . 5 . Fire 69 | 9 19 39 2 Melee . | . . . . Ram 5 | . . . 5 Kick 2 | . . . 2 Crush . | . . . . Escape Stasis . | . . . . Rewire . | . . . . Trap . | . . . . Miscellaneous . | . . . . Route ------- -11/Scrapyard -10/Materials -10/Mines (discovered 2 exits: [*Mat x2]) -9/Materials History --------- Turn | Location | Event 2 | -11/Scrapyard | Met Revision 17 57 | -11/Scrapyard | Discovered new exit (range 8) 104 | -11/Scrapyard | Entered Materials 309 | -10/Materials | Build established: Mutant 334 | -10/Materials | Discovered new exit (range 7) 353 | -10/Materials | Entered Mines 396 | -10/Mines | Lost 3 parts (1p1n1w) 408 | -10/Mines | Discovered new exit (range 7) 480 | -10/Mines | Excavation squad dispatched 480 | -10/Mines | A large section of the Mines collapsed 676 | -10/Mines | Core integrity fell below 50% 725 | -10/Mines | Learned Materials emergency access door positions 827 | -10/Mines | Discovered new exit (range 7) 834 | -10/Mines | Entered Materials 834 | -9/Materials | Evolved 2 slots: Propulsion x1, Utility x1 944 | -9/Materials | Core integrity fell below 50% 947 | -9/Materials | Self-destructed Last Messages --------------- 00827_ EXIT=FOUND PARAMETERS=PROPULSION_1,UTILITY_1 LOCATION=UNKNOWN GOAL=ESCAPE Loading Materials emergency access points (x4)... 00891_ Lgt. Cannon destroyed. 00907_ Aluminum Leg destroyed. 00910_ K-01 Serf collects debris. 00920_ K-01 Serf suffers critical hit. 00921_ Slammed into S-10 Pest. Ramming works as a last resort when unarmed or blocked, but can have serious negative consequences. 00921_ K-01 Serf collects debris. 00922_ Slammed into S-10 Pest. 00923_ K-01 Serf collects debris. 00934_ Lgt. Nuclear Core destroyed. 00940_ Aluminum Leg destroyed. 00942_ Slammed into S-10 Pest. 00946_ S-10 Pest destroyed. [Achievement: Fist Fight] Map ----- +----------------------------------------------------+ | ????????????????????????????? | | ????????????????????????????? | | ????????????????????????????? | | ????????????????????????????? | | ????????????????????????????? | | ????????????????????????????? | | ????????????????????????????? | | ????????????????????????????? | | ????????????????????????????? | | ????????????????????????????? | | ????????????????????????????? | | ????????????????????????????? | | ????????????????????????????? | | ????????????????????????????? | | ????????????????????????????? | | ????????????????????????????? | | ????????????????????????????? | | ???###??????????????????????? | | ???# ??????????????????????? | | ???# #???????????????????"??? | | ??## ##????????????????? "??? | | ??# #????????????? ""??? | | ??# ?????????????? ""??? | | ??# ?????????????? """ ? | | ???#Y############### " | | ???#@* u | | ???#%ss | | ???#%s g % !!! | | ####%##########+#### !!! | | # #??# # !!! | | # #??# # "" | | # """ #??# # "Y | | # """ #??# # "" | | # """ #??# # | | # #??# # | | ########??# + #????? | | ??????????# # #????? | | ??????????# # #????? | | ???################# #????? | | ???# # #???? | | ???# """ # #???? | | ???# """ # #??? | | ???# """ + ###/####??? | | ???# # # #?? | | ???# """ # # #?? | | ???# """ # # #? | | ???# """ # # ## | | ???# # # / | | ???########## # ## | | ????????????# ########? | +----------------------------------------------------+ Best States ------------- Heat Dissipation 28 Energy Generation 14 Energy Capacity 250 Matter Stores 300 Matter Capacity 300 Sight Range 16 Terrain Scan Density 10 Evasion (%) 50 Item Schematics ----------------- None Robot Schematics ------------------ None Fabricated ------------ Nothing Alien Tech Used ----------------- None Achievements -------------- Crack Shot Fist Fight Challenges ------------ None Game ------ Seed ImprovedLightBoomstick Manual? 0 Play Time 00:11:57 Cumulative 1.1 hours Start 2020.02.09 @ 01:07:53 End 2020.02.09 @ 01:21:48 Sessions 1 Manual Loads 0 Difficulty Rogue Special Mode None Game No. 2 Rogue 2 Adventurer 0 Explorer 0 Win Type - Total 0 Types 0/0/0/0/0/0/0 Lore% 0 Gallery% 2 Achievement% 3 Wizard Run 0 Options --------- ASCII 0 Keyboard 0 Movement Mouse Keybinds 0 Fullscreen 2 Font 18/SmallcapsGlow Map View 76x50 Tactical HUD 1 Map Filters NONE Filters NONE Steam 0 RUN: ef99bfe9-715f-4937-adef-6296dddaabc4